bitfinex/quotes_ETHUSD_20250504
["timestamp","ask_amount","ask_price","bid_price","bid_amount"]
[1746332702719,0.51036794,1839.0,1838.9,0.15565422]
[1746332703120,0.51036794,1839.0,1838.7,1.36817064]
[1746332703293,0.51036794,1838.9,1838.7,1.36817064]
[1746332703490,5.43761152,1839.1,1838.7,6.8067898]
[1746332703688,0.51037946,1839.0,1838.8,0.68067898]
[1746332703998,5.43761152,1839.1,1838.8,0.68067898]
[1746332704325,0.51037688,1839.0,1838.8,0.68067898]
[1746332704519,5.43781368,1839.0,1838.8,0.68067898]
[1746332704817,6.22665682,1838.8,1838.4,0.7576]
[1746332705020,6.22665682,1838.8,1838.5,1.36817064]
[1746332705191,0.51012405,1838.7,1838.5,1.36817064]
[1746332705391,0.51012405,1838.7,1838.5,2.12468694]
[1746332705808,6.22665682,1838.8,1838.5,2.12468694]
[1746332706214,5.43817036,1838.9,1838.5,7.56390328]
[1746332706793,0.51012029,1838.8,1838.7,1.36817064]
[1746332707616,0.51012029,1838.8,1838.5,7.56390328]
[1746332707819,5.43817036,1838.9,1838.6,0.75639033]
[1746332708021,6.22616419,1839.0,1838.7,1.36817064]
[1746332708197,0.50994561,1838.9,1838.8,2.18727064]
[1746332708628,5.43758557,1839.1,1838.8,2.18727064]
[1746332708829,0.50993296,1839.0,1838.8,2.18727064]
[1746332709018,0.50993296,1838.9,1838.8,2.18727064]
[1746332710225,0.50993296,1838.9,1838.8,1.36817064]
[1746332710528,5.94796656,1838.9,1838.8,1.36817064]
[1746332716110,5.43835577,1838.8,1838.6,2.18727064]
[1746332716311,5.43835577,1838.8,1838.6,2.97366629]
[1746332716945,5.43835577,1838.8,1838.7,0.15788817]
[1746332717452,0.5099076,1838.8,1838.6,2.97366629]
[1746332717739,5.43821378,1838.9,1838.7,0.15788817]
[1746332718042,0.50988579,1838.8,1838.7,0.15788817]
[1746332718225,0.50988579,1838.8,1838.6,2.97366629]
[1746332718546,0.50988579,1838.8,1838.7,0.15788817]
[1746332718750,5.43821378,1838.9,1838.7,0.15788817]
[1746332718941,10.87649312,1838.9,1838.6,2.97366629]
[1746332719241,5.43862511,1838.7,1838.6,1.36817064]
[1746332719632,5.94828643,1838.8,1838.6,1.36817064]
[1746332720018,0.50989311,1838.7,1838.6,1.36817064]
[1746332721535,0.50989311,1838.7,1838.5,5.88117064]
[1746332721536,5.94861741,1838.7,1838.5,5.88117064]
[1746332722156,5.4387243,1838.7,1838.5,5.88117064]
[1746332723449,5.4387243,1838.7,1838.5,1.36817064]
[1746332727457,5.43892091,1838.6,1838.4,2.18727064]
[1746332727750,5.43892091,1838.6,1838.4,1.36817064]
[1746332729231,6.24845058,1838.7,1838.4,1.36817064]
[1746332729429,0.50977346,1838.6,1838.4,1.36817064]
[1746332729750,0.50977346,1838.6,1838.5,1.36817064]
[1746332731617,0.50977346,1838.6,1838.4,0.7646]
[1746332731851,0.50977346,1838.6,1838.5,1.36817064]
[1746332732151,0.50977346,1838.6,1838.5,1.52768839]
[1746332736420,13.49878505,1839.0,1838.5,1.58207751]
[1746332736421,6.26757442,1839.0,1838.5,1.58207751]
[1746332736628,3.0,1838.9,1838.7,1.36817064]
[1746332736840,0.509768,1838.8,1838.7,1.36817064]
[1746332738768,0.509768,1838.8,1838.7,2.1246793]
[1746332740463,0.509768,1838.8,1838.7,1.36817064]
[1746332741765,0.509768,1838.8,1838.6,2.35461034]
[1746332742170,5.94822049,1838.8,1838.6,0.758]
[1746332742333,0.509768,1838.7,1838.4,8.47752027]
[1746332742533,0.509768,1838.7,1838.4,13.91682163]
[1746332742732,0.509768,1838.7,1838.5,6.83087496]
[1746332742967,5.43825664,1838.9,1838.5,6.83087496]
[1746332743173,5.43825664,1838.9,1838.5,5.4391928]
[1746332743379,0.50990558,1838.8,1838.5,5.4391928]
[1746332743882,0.50990558,1838.7,1838.5,5.4391928]
[1746332744347,5.43834264,1838.8,1838.4,8.47756945]
[1746332745986,0.51003319,1838.7,1838.4,8.47756945]
[1746332746186,0.51003319,1838.7,1838.5,0.84775695]
[1746332746993,5.43834264,1838.8,1838.6,0.15935623]
[1746332747566,5.43834264,1838.8,1838.4,8.47756945]
[1746332747783,0.5100728,1838.7,1838.4,8.47756945]
[1746332748279,5.43834264,1838.8,1838.4,8.47756945]
[1746332749203,0.51009703,1838.7,1838.4,8.47756945]
[1746332749689,0.51009703,1838.7,1838.5,0.84775695]
[1746332749852,5.43834264,1838.8,1838.5,0.84775695]
[1746332750884,0.51009887,1838.7,1838.5,6.28688392]
[1746332751086,0.51009887,1838.7,1838.6,7.88821719]
[1746332751290,0.51009887,1838.7,1838.6,10.88821719]
[1746332751491,0.51009887,1838.7,1838.6,12.60571782]
[1746332751798,3.66086084,1839.1,1838.9,6.23633289]
[1746332751970,3.66086084,1839.1,1838.9,6.29070826]
[1746332752294,3.66086084,1839.1,1838.9,7.88712049]
[1746332752462,3.66086084,1839.1,1838.9,7.83274512]
[1746332752658,3.66086084,1839.1,1838.9,9.15983774]
[1746332753772,3.66086084,1839.2,1838.9,9.15983774]
[1746332754387,9.09818003,1839.2,1838.9,3.72200296]
[1746332754566,9.09818003,1839.2,1838.9,2.39491034]
[1746332754768,0.50930962,1839.1,1838.9,2.39491034]
[1746332754974,0.50930962,1839.1,1838.9,7.83294356]
[1746332755293,3.66086084,1839.2,1838.9,7.83294356]
[1746332756091,3.66086084,1839.2,1838.9,2.39491034]
[1746332756592,3.66086084,1839.2,1838.9,7.83291168]
[1746332756794,3.66086084,1839.2,1839.0,0.78329117]
[1746332757293,3.66086084,1839.2,1838.9,2.39491034]
[1746332757792,5.43717857,1839.2,1838.9,2.39491034]
[1746332758805,5.43699227,1839.3,1838.9,7.83282398]
[1746332759302,0.5089774,1839.2,1838.9,7.83282398]
[1746332759873,5.43699227,1839.3,1838.9,7.83282398]
[1746332760071,5.43699227,1839.3,1839.0,0.7832824]
[1746332760315,0.7982,1839.4,1839.1,1.59661034]
[1746332760470,6.25695076,1839.5,1839.1,7.03402276]
[1746332760870,6.25695076,1839.5,1839.1,7.83402276]
[1746332760871,0.50888142,1839.4,1839.1,7.83402276]
[1746332761272,0.50888142,1839.4,1839.1,2.39661034]
[1746332761501,9.09699461,1839.6,1839.1,7.8338076]
[1746332761687,9.09699461,1839.6,1839.1,8.74988422]
[1746332761884,0.50871874,1839.5,1839.1,14.13276662]
[1746332762088,0.50871874,1839.5,1839.2,0.15337258]
[1746332762301,9.09699461,1839.6,1839.2,0.15337258]
[1746332763106,0.508582,1839.5,1839.2,0.15337258]
[1746332763408,0.508582,1839.5,1839.2,1.58198703]
[1746332763597,9.09699461,1839.6,1839.2,5.59050772]
[1746332764620,0.50842602,1839.5,1839.2,5.59050772]
[1746332764989,5.43637653,1839.5,1839.2,0.15337258]
[1746332765414,10.87288318,1839.5,1839.2,0.15337258]
[1746332765588,6.25687653,1839.5,1839.2,0.15337258]
[1746332768412,0.8205,1839.5,1839.2,1.03826729]
[1746332768710,0.8205,1839.5,1839.2,6.47539744]
[1746332769308,6.25676144,1839.5,1839.2,1.03826729]
[1746332769987,5.43616126,1839.6,1839.2,6.4753772]
[1746332770184,6.25666126,1839.6,1839.2,6.4753772]
[1746332770678,0.50826095,1839.5,1839.2,6.4753772]
[1746332770907,0.50826095,1839.5,1839.3,0.64753772]
[1746332771303,6.25666126,1839.6,1839.4,0.15066784]
[1746332771813,6.25666126,1839.6,1839.5,0.15022211]
[1746332772307,6.76488301,1839.6,1839.3,0.64753772]
[1746332772471,6.76488301,1839.6,1839.5,0.15022211]
[1746332772674,6.76488301,1839.6,1839.4,0.15066784]
[1746332772876,6.25666126,1839.6,1839.5,0.15022211]
[1746332773223,6.25666126,1839.6,1839.3,0.64753772]
[1746332773431,6.25666126,1839.6,1839.5,0.15022211]
[1746332773637,5.43632874,1839.5,1839.2,0.88489471]
[1746332776512,5.43632874,1839.5,1839.1,8.69562971]
[1746332777139,5.43632874,1839.5,1839.2,0.15155944]
[1746332777631,5.43680018,1839.4,1839.2,0.15155944]
[1746332777800,6.22960018,1839.4,1839.0,8.43763394]
[1746332778000,6.7383206,1839.4,1839.3,0.15100697]
[1746332778202,6.7383206,1839.4,1839.0,8.43763394]
[1746332778514,6.22960018,1839.4,1839.3,0.15100697]
[1746332778719,6.22960018,1839.4,1839.0,8.43763394]
[1746332778937,6.22960018,1839.4,1839.3,0.15100697]
[1746332779109,6.22960018,1839.4,1839.0,8.43763394]
[1746332779315,6.73855072,1839.4,1839.3,0.15100697]
[1746332779810,6.73855072,1839.4,1839.0,8.43763394]
[1746332780010,6.73855072,1839.4,1839.3,0.15100697]
[1746332780210,6.73855072,1839.4,1839.0,8.43763394]
[1746332780402,6.22960018,1839.4,1839.3,0.15100697]
[1746332780604,6.22960018,1839.4,1839.0,8.43763394]
[1746332780806,6.22960018,1839.4,1839.3,0.15100697]
[1746332781016,6.22960018,1839.4,1839.0,8.43763394]
[1746332781315,6.22960018,1839.4,1839.3,0.15100697]
[1746332781941,6.22960018,1839.4,1839.0,8.43763394]
[1746332781942,6.73921854,1839.4,1839.0,8.43763394]
[1746332782112,6.73921854,1839.4,1839.3,0.15100697]
[1746332782314,6.73921854,1839.4,1839.0,8.43763394]
[1746332782644,6.22960018,1839.4,1839.0,8.43763394]
[1746332782946,6.22960018,1839.4,1839.1,0.15189867]
[1746332783330,7.39619873,1839.4,1839.1,0.15189867]
[1746332783641,0.50964769,1839.3,1839.1,0.15189867]
[1746332784142,0.50964769,1839.2,1839.1,0.15189867]
[1746332784343,0.50964769,1839.2,1839.1,5.58934089]
[1746332784676,0.50964769,1839.2,1839.1,6.41544089]
[1746332784962,6.24762422,1839.6,1839.2,5.43701016]
[1746332785107,0.50966436,1839.5,1839.2,5.43701016]
[1746332785308,0.50966436,1839.5,1839.3,0.15139806]
[1746332785622,0.50966436,1839.4,1839.3,5.58824903]
[1746332786331,0.50966436,1839.4,1839.3,0.15139806]
[1746332788131,0.50966436,1839.4,1839.3,6.14708683]
[1746332788844,0.50966436,1839.4,1839.3,6.94238683]
[1746332789015,0.50966436,1839.4,1839.3,1.50553586]
[1746332789544,0.50966436,1839.4,1839.3,6.94238683]
[1746332791846,5.43575314,1839.7,1839.3,6.94238683]
[1746332792518,0.50979449,1839.6,1839.3,6.94238683]
[1746332792742,0.50979449,1839.6,1839.4,0.69423868]
[1746332792949,0.50979449,1839.5,1839.4,0.69423868]
[1746332795749,0.50979449,1839.5,1839.3,0.5588378]
[1746332796336,0.50979449,1839.4,1839.3,0.5588378]
[1746332798440,0.50979449,1839.4,1839.2,3.0]
[1746332798626,0.50979449,1839.3,1839.2,3.0]
[1746332806866,0.50979449,1839.3,1839.2,3.15102629]
[1746332812192,6.24174935,1839.6,1839.2,8.58817287]
[1746332812909,0.50984395,1839.5,1839.2,8.58817287]
[1746332813105,0.50984395,1839.4,1839.2,10.37843416]
[1746332813709,6.24174935,1839.6,1839.2,11.74614485]
[1746332813891,6.24174935,1839.6,1839.2,9.95588356]
[1746332814195,0.50990384,1839.5,1839.2,9.95588356]
[1746332814497,0.50990384,1839.4,1839.3,5.43685097]
[1746332814680,0.50990384,1839.4,1839.3,7.74789754]
[1746332815082,5.43578822,1839.7,1839.3,7.74789754]
[1746332815325,0.50991665,1839.6,1839.3,9.36640195]
[1746332815674,0.50991665,1839.6,1839.3,3.92955098]
[1746332815675,5.94589413,1839.6,1839.3,3.92955098]
[1746332815910,0.50991665,1839.5,1839.3,1.51864657]
[1746332816604,0.50991665,1839.4,1839.3,1.51864657]
[1746332817511,0.50991665,1839.4,1839.3,0.15093588]
[1746332823140,5.94647204,1839.4,1839.3,0.15093588]
[1746332823495,0.50991665,1839.4,1839.3,0.15093588]
[1746332825608,5.94647204,1839.4,1839.3,0.15093588]
[1746332825808,0.50991665,1839.4,1839.3,0.15093588]
[1746332826213,5.94647204,1839.4,1839.3,0.15093588]
[1746332828905,0.50991665,1839.4,1839.3,0.15093588]
[1746332831938,5.94647204,1839.4,1839.3,0.15093588]
[1746332834735,5.43715776,1839.2,1838.9,6.50089518]
[1746332835112,1.30681665,1839.1,1838.8,0.8109]
[1746332835318,5.43854437,1838.8,1838.6,6.09765881]
[1746332835521,5.43854437,1838.8,1838.6,1.59565881]
[1746332835714,5.43854437,1838.8,1838.6,2.05522469]
[1746332836154,5.43854437,1838.8,1838.6,1.59565881]
[1746332836806,5.43854437,1838.8,1838.7,0.15435813]
[1746332837008,5.94818501,1838.8,1838.6,1.59565881]
[1746332837203,5.94818501,1838.8,1838.7,0.15435813]
[1746332837442,5.94818501,1838.8,1838.6,1.59565881]
[1746332837749,5.94818501,1838.8,1838.7,0.15435813]
[1746332838038,5.94818501,1838.8,1838.4,5.40655881]
[1746332838258,5.43866629,1838.7,1838.4,5.40655881]
[1746332838407,5.43866629,1838.7,1838.5,0.15525041]
[1746332840250,5.43849354,1838.8,1838.5,0.15525041]
[1746332840550,5.43849354,1838.8,1838.5,0.75209753]
[1746332841912,5.43849354,1838.8,1838.6,1.59565881]
[1746332842242,5.43849354,1838.8,1838.6,1.75281021]
[1746332842459,5.43823268,1838.9,1838.6,1.75281021]
[1746332842622,0.7969,1839.0,1838.6,2.55561021]
[1746332842951,0.50839562,1838.9,1838.6,7.99451544]
[1746332843145,5.43765858,1839.1,1838.8,1.59565881]
[1746332843520,6.21246009,1839.2,1838.9,0.9586132]
[1746332843916,5.43755482,1839.1,1838.9,0.9586132]
[1746332851468,0.7752,1839.2,1838.9,0.9586132]
[1746332851770,5.4370018,1839.3,1839.0,1.59565881]
[1746332851966,0.50832958,1839.2,1839.1,0.7663]
[1746332852154,5.43643753,1839.5,1839.1,4.71750736]
[1746332852385,10.8729608,1839.5,1839.1,4.71750736]
[1746332852684,5.43643753,1839.5,1839.1,4.71750736]
[1746332854448,10.87296869,1839.5,1839.1,4.71750736]
[1746332854653,5.43643753,1839.5,1839.1,4.71750736]
[1746332854867,5.4365581,1839.4,1839.2,0.47175074]
[1746332855077,5.4365581,1839.4,1839.3,0.15452708]
[1746332858979,5.43645372,1839.5,1839.3,0.15452708]
[1746332860372,10.87296068,1839.5,1839.3,0.15452708]
[1746332860807,5.43645372,1839.5,1839.1,9.99931148]
[1746332860975,5.43645372,1839.5,1839.4,0.1525878]
[1746332861176,5.94480862,1839.5,1839.1,9.20373629]
[1746332861377,5.94480862,1839.5,1839.4,0.1525878]
[1746332861577,5.94480862,1839.5,1839.1,9.20373629]
[1746332861904,5.94480862,1839.5,1839.2,0.1534794]
[1746332862079,5.43645372,1839.5,1839.2,0.1534794]
[1746332863514,5.43663724,1839.4,1839.2,0.1534794]
[1746332864780,5.43685097,1839.3,1839.2,0.1534794]
[1746332865312,5.43674995,1839.4,1839.2,0.1534794]
[1746332867624,5.43641566,1839.5,1839.2,0.1534794]
[1746332867805,5.43641566,1839.5,1839.2,1.08919851]
[1746332868809,5.43641566,1839.5,1839.2,2.68485732]
[1746332869734,5.43616898,1839.6,1839.2,8.12199772]
[1746332870041,0.50889052,1839.5,1839.2,8.12199772]
[1746332870226,0.50889052,1839.5,1839.2,8.1763636]
[1746332870538,0.50889052,1839.5,1839.3,0.70133282]
[1746332870719,5.94516133,1839.5,1839.4,0.15113001]
[1746332870925,5.43627081,1839.5,1839.2,2.53137792]
[1746332871137,5.43627081,1839.5,1839.3,0.15157579]
[1746332872439,0.50915654,1839.4,1839.3,0.15157579]
[1746332885467,0.50915654,1839.4,1839.3,0.98067579]
[1746332885706,0.50915654,1839.4,1839.3,2.41928849]
[1746332887507,0.50915654,1839.4,1839.3,3.78685623]
[1746332890288,0.50915654,1839.4,1839.3,2.95775623]
[1746332890609,0.50915654,1839.4,1839.3,1.59018849]
[1746332890811,0.50915654,1839.4,1839.3,0.15157579]
[1746332892902,6.73141193,1839.4,1839.3,0.15157579]
[1746332894516,12.16822484,1839.4,1839.1,4.36756774]
[1746332894717,12.16822484,1839.4,1839.2,0.15166611]
[1746332894884,0.50915654,1839.3,1839.2,0.15166611]
[1746332895222,5.94600751,1839.3,1839.2,0.15166611]
[1746332895386,6.73170751,1839.3,1839.2,0.15166611]
[1746332895586,6.73170751,1839.3,1839.1,1.36756774]
[1746332895821,6.22255097,1839.3,1839.2,0.15255484]
[1746332896505,6.73243316,1839.3,1839.2,0.15255484]
[1746332896705,0.50988219,1839.3,1839.2,1.52012258]
[1746332899587,0.50988219,1839.3,1839.2,0.15255484]
[1746332909203,0.50988219,1839.3,1839.2,0.87111613]
[1746332911332,0.50988219,1839.3,1839.2,6.30826271]
[1746332912406,0.50988219,1839.3,1839.2,7.06266271]
[1746332913017,6.22166544,1839.6,1839.2,7.06266271]
[1746332913533,0.50981228,1839.5,1839.2,7.06266271]
[1746332913826,0.50981228,1839.4,1839.2,7.06266271]
[1746332914131,0.50981228,1839.4,1839.2,6.30826271]
[1746332914928,6.22166544,1839.6,1839.2,6.30826271]
[1746332915130,6.22166544,1839.6,1839.2,5.58970142]
[1746332915329,5.94614041,1839.5,1839.2,0.15255484]
[1746332915713,0.50982469,1839.4,1839.2,0.15255484]
[1746332915939,0.50982469,1839.3,1839.2,0.15255484]
[1746332916842,0.50982469,1839.3,1839.2,5.58970142]
[1746332917021,0.50982469,1839.3,1839.2,6.9349296]
[1746332918333,0.50982469,1839.3,1839.2,1.49778302]
[1746332919061,0.50982469,1839.3,1839.2,6.9349296]
[1746332919550,6.2218579,1839.6,1839.2,6.9349296]
[1746332919753,11.65807682,1839.6,1839.2,5.58970142]
[1746332919929,0.50995592,1839.5,1839.2,5.58970142]
[1746332920344,6.2218579,1839.6,1839.2,5.58970142]
[1746332920345,0.50995592,1839.4,1839.2,5.58970142]
[1746332920955,0.50995592,1839.3,1839.2,5.58970142]
[1746332921459,0.50995592,1839.3,1839.2,0.15255484]
[1746332921636,0.50995592,1839.3,1839.2,2.32177506]
[1746332923061,0.50995592,1839.3,1839.2,7.75892164]
[1746332923771,0.50995592,1839.3,1839.2,2.32177506]
[1746332924768,0.50995592,1839.3,1839.2,1.52026153]
[1746332925166,0.50995592,1839.3,1839.2,0.15255484]
[1746332925354,0.50995592,1839.3,1839.0,14.70994946]
[1746332925551,0.50995592,1839.3,1839.1,0.15271632]
[1746332925741,0.50995592,1839.2,1839.1,0.15271632]
[1746332925946,0.50995592,1839.2,1839.1,1.63897913]
[1746332926959,0.50995592,1839.2,1839.1,7.07642135]
[1746332927141,0.50995592,1839.2,1839.1,10.07642135]
[1746332937289,0.50995592,1839.2,1839.1,7.07642135]
[1746332939884,0.8048,1839.4,1839.1,7.07642135]
[1746332940371,0.51012753,1839.3,1839.1,7.07642135]
[1746332940873,0.8048,1839.4,1839.1,7.07642135]
[1746332942209,0.51012788,1839.3,1839.1,7.07642135]
[1746332942807,0.51012788,1839.2,1839.1,7.07642135]
[1746332946211,0.51012788,1839.2,1839.1,4.63897913]
[1746332949095,0.51012788,1839.2,1839.1,10.07642135]
[1746332950888,0.51012788,1839.2,1839.1,4.63897913]
[1746332951089,0.51012788,1839.2,1839.1,10.07642135]
[1746332952811,0.51012788,1839.2,1839.1,4.63897913]
[1746332953107,0.51012788,1839.2,1839.1,3.15271632]
[1746332955311,6.75167446,1839.2,1839.1,0.15271632]
[1746332955697,6.75167446,1839.2,1838.9,4.493]
[1746332956006,6.75167446,1839.2,1839.0,0.15344663]
[1746332956313,0.51012788,1839.1,1839.0,0.15344663]
[1746332961614,1.1853092,1839.1,1839.0,0.15344663]
[1746332961813,5.43835873,1838.8,1838.6,5.86070669]
[1746332962016,5.43835873,1838.8,1838.7,0.15478469]
[1746332962017,6.19102934,1838.8,1838.7,0.15478469]
[1746332962218,5.43909064,1838.6,1838.3,1.36770669]
[1746332962390,1.36770669,1839.0,1838.2,4.493]
[1746332962391,5.43951261,1838.4,1838.2,4.493]
[1746332962722,5.4395423,1838.4,1838.2,4.493]
[1746332962897,6.19210435,1838.5,1838.2,1.36770669]
[1746332963526,6.19210435,1838.5,1838.1,4.59746122]
[1746332964193,6.19210435,1838.5,1838.1,10.03782183]
[1746332964394,6.19210435,1838.5,1838.1,11.66375483]
[1746332965023,5.43952918,1838.4,1838.1,6.22339422]
[1746332965411,0.7563,1838.2,1838.0,3.0]
[1746332967022,6.19658653,1838.2,1837.9,6.09146122]
[1746332967224,6.19658653,1838.2,1837.9,4.494]
[1746332968726,5.44044355,1838.1,1837.9,4.494]
[1746332968929,6.1965725,1838.2,1837.9,4.494]
[1746332969618,11.63696577,1838.2,1837.9,4.494]
[1746332969817,6.1965725,1838.2,1837.9,4.494]
[1746332970839,0.7563,1838.2,1837.9,4.494]
[1746332971140,6.22234918,1838.3,1837.9,11.95244375]
[1746332971503,0.7823,1838.3,1837.9,11.95228175]
[1746332971831,6.22224912,1838.3,1838.0,0.16228336]
[1746332972295,6.22224912,1838.3,1838.0,1.75974458]
[1746332972494,5.43964437,1838.4,1838.0,7.20043104]
[1746332973661,5.43981447,1838.3,1838.0,1.75974458]
[1746332973850,5.43981447,1838.3,1838.0,1.70974458]
[1746332974048,5.43981447,1838.3,1838.0,1.75779988]
[1746332975161,0.8018,1838.2,1838.0,1.75779988]
[1746332975831,5.43981447,1838.3,1838.0,1.75779988]
[1746332977963,5.44018379,1838.2,1838.0,1.75779988]
[1746332980470,5.44018379,1838.2,1838.0,0.16033866]
[1746332983673,5.44000543,1838.3,1838.0,0.16033866]
[1746332985370,5.44011327,1838.2,1838.0,0.16033866]
[1746332987490,5.44040041,1838.1,1838.0,0.16033866]
[1746332987905,5.44029056,1838.2,1838.0,0.16033866]
[1746332989797,10.88068041,1838.2,1838.0,0.16033866]
[1746332989976,6.19950041,1838.1,1837.8,5.00258609]
[1746332990301,6.19950041,1838.1,1837.9,0.16119588]
[1746332990598,6.19950041,1838.1,1837.8,5.00258609]
[1746332990762,6.19950041,1838.1,1837.9,0.16119588]
[1746332990968,6.19950041,1838.1,1837.8,5.00258609]
[1746332991292,6.19950041,1838.1,1837.9,0.16119588]
[1746332991507,0.7591,1838.1,1837.9,0.16119588]
[1746332991794,0.7591,1838.1,1838.0,0.16074942]
[1746332992006,1.26887425,1838.1,1837.8,10.44386219]
[1746332992161,1.26887425,1838.1,1837.9,0.16119588]
[1746332992365,1.26887425,1838.1,1837.8,10.44386219]
[1746332992583,5.44028756,1838.2,1837.9,0.16140946]
[1746332992801,5.44028756,1838.2,1837.8,12.56232398]
[1746332992998,5.44028756,1838.2,1837.9,0.16140946]
[1746332993299,5.44028756,1838.2,1837.8,12.56211239]
[1746332993500,0.50996082,1838.1,1838.0,0.16096301]
[1746332994000,0.50996082,1838.1,1837.8,12.56211239]
[1746332994201,0.50996082,1838.1,1837.9,0.16140946]
[1746332994386,0.50996082,1838.1,1837.8,18.00317689]
[1746332994700,5.44028756,1838.2,1837.9,0.16140946]
[1746332995004,5.44028756,1838.2,1837.8,12.56211238]
[1746332995168,5.44028756,1838.2,1837.9,0.16140946]
[1746332995366,5.44028756,1838.2,1837.8,12.56211238]
[1746332995571,5.44028756,1838.2,1837.9,0.16140946]
[1746332995791,5.44028756,1838.2,1837.8,12.56211238]
[1746332996098,0.51034436,1838.1,1837.9,0.16140946]
[1746332996287,0.51034436,1838.1,1837.9,7.70639169]
[1746332996493,5.43999618,1838.3,1837.9,7.54498223]
[1746332996667,0.51037731,1838.2,1838.0,0.16096301]
[1746332997170,0.51037731,1838.1,1838.0,0.16096301]
[1746332997367,0.51037731,1838.1,1838.0,5.60165941]
[1746332997571,0.51037731,1838.1,1838.0,7.19912063]
[1746332999318,0.51037731,1838.1,1838.0,2.68874782]
[1746332999491,0.51037731,1838.1,1838.0,8.92294422]
[1746332999876,6.19823868,1838.6,1838.2,0.7935]
[1746333000076,0.51041133,1838.5,1838.3,0.15955275]
[1746333000307,5.94963254,1838.5,1838.3,0.15955275]
[1746333000507,0.51041133,1838.5,1838.3,0.15955275]
[1746333000819,6.19819997,1838.6,1838.3,5.59936126]
[1746333000820,0.51041133,1838.4,1838.3,5.59936126]
[1746333001409,0.7591,1838.6,1838.3,0.15955275]
[1746333001810,0.51039481,1838.5,1838.3,5.59935612]
[1746333002111,0.7591,1838.6,1838.3,5.59935612]
[1746333002714,6.19803567,1838.6,1838.3,0.15955275]
[1746333002923,5.43921833,1838.5,1838.3,0.15955275]
[1746333003216,6.19818178,1838.6,1838.3,0.15955275]
[1746333003588,0.50969041,1838.5,1838.3,0.15955275]
[1746333003920,6.19818178,1838.6,1838.3,0.15955275]
[1746333005420,0.50960264,1838.5,1838.3,0.15955275]
[1746333005620,0.50960264,1838.5,1838.3,0.95860381]
[1746333005821,6.19818178,1838.6,1838.3,0.95860381]
[1746333006921,0.50946433,1838.5,1838.3,0.15955275]
[1746333007416,6.19821447,1838.6,1838.3,0.15955275]
[1746333008522,0.50936215,1838.5,1838.3,0.15955275]
[1746333009025,6.19821447,1838.6,1838.3,0.15955275]
[1746333009326,5.43926165,1838.5,1838.3,0.15955275]
[1746333009992,0.50935348,1838.4,1838.3,0.15955275]
[1746333010526,5.43926165,1838.5,1838.3,0.15955275]
[1746333011832,6.19819332,1838.6,1838.3,0.15955275]
[1746333012219,0.50930728,1838.5,1838.3,0.15955275]
[1746333012607,6.19819332,1838.6,1838.3,0.15955275]
[1746333012832,5.43922839,1838.5,1838.3,0.15955275]
[1746333013947,5.43951261,1838.4,1838.3,0.15955275]
[1746333014232,6.75101193,1838.4,1838.3,0.15955275]
[1746333015820,5.44006744,1838.3,1837.9,3.7533]
[1746333016058,10.88013488,1838.3,1837.9,3.7533]
[1746333016257,5.44012335,1838.2,1837.9,3.7533]
[1746333017866,5.43999974,1838.3,1837.9,3.7533]
[1746333018064,5.43999974,1838.3,1837.9,9.19426853]
[1746333018065,0.50937069,1838.2,1837.9,9.19426853]
[1746333018259,0.50937069,1838.2,1837.9,11.02759051]
[1746333018869,5.43999974,1838.3,1837.9,11.02759051]
[1746333019066,5.43999974,1838.3,1837.9,9.19426853]
[1746333019240,5.43999974,1838.3,1837.9,3.7533]
[1746333019571,0.50940584,1838.2,1837.9,3.7533]
[1746333019871,10.88005007,1838.3,1837.9,3.7533]
[1746333020342,0.8022,1838.4,1837.9,3.7533]
[1746333020343,5.44039678,1838.2,1837.9,3.7533]
[1746333020543,5.44033559,1838.2,1837.9,3.7533]
[1746333021984,5.44033559,1838.2,1837.4,5.70170241]
[1746333021985,5.44125923,1837.9,1837.6,4.491]
[1746333022141,5.44144456,1837.8,1837.6,4.491]
[1746333022475,6.19781777,1837.9,1837.5,7.03963063]
[1746333022969,6.19781777,1837.9,1837.5,1.59746122]
[1746333023140,6.19781777,1837.9,1837.5,7.03963644]
[1746333023340,5.4412997,1837.8,1837.5,4.59746122]
[1746333023773,5.4412997,1837.8,1837.5,5.01010691]
[1746333023972,5.4412997,1837.8,1837.5,3.41264569]
[1746333024175,5.4412997,1837.8,1837.5,5.01010691]
[1746333024977,5.44159557,1837.7,1837.5,1.59746122]
[1746333025504,5.44147814,1837.8,1837.5,1.59746122]
[1746333026870,10.88304058,1837.8,1837.5,1.59746122]
[1746333027264,5.4420237,1837.6,1837.4,3.0]
[1746333027664,5.44230217,1837.5,1837.3,4.491]
[1746333028199,5.44203738,1837.6,1837.3,4.491]
[1746333028610,5.44221682,1837.5,1837.3,4.491]
[1746333028913,5.44204815,1837.6,1837.3,4.491]
[1746333029121,5.44222294,1837.5,1837.3,4.491]
[1746333029625,5.44222294,1837.5,1837.1,7.8625184]
[1746333029798,5.44222294,1837.5,1837.1,9.94223073]
[1746333030207,5.44259491,1837.4,1837.1,5.41936122]
[1746333030499,5.44259491,1837.4,1837.1,2.41936122]
[1746333031385,5.44259491,1837.4,1837.1,2.81975258]
[1746333033125,6.2047541,1837.5,1837.1,8.26308919]
[1746333033330,0.7624,1837.5,1837.1,2.81975258]
[1746333033641,0.8132,1837.7,1837.3,7.83898552]
[1746333033936,5.44150776,1837.8,1837.5,1.59746122]
[1746333037128,5.44129155,1837.8,1837.5,1.59746122]
[1746333041130,10.74536668,1837.9,1837.5,1.59746122]
[1746333041332,5.44133746,1837.8,1837.5,1.59746122]
[1746333041554,5.44133746,1837.8,1837.6,0.16691473]
[1746333042555,10.74534394,1837.9,1837.6,0.16691473]
[1746333043470,5.44082657,1838.0,1837.6,5.60865761]
[1746333044098,0.50827239,1837.9,1837.6,5.60865761]
[1746333044766,5.44082657,1838.0,1837.6,5.60865761]
[1746333045234,5.44099323,1837.9,1837.6,0.16691473]
[1746333045435,5.44135911,1837.8,1837.6,0.16691473]
[1746333045837,6.77890686,1837.9,1837.6,0.16691473]
[1746333046034,6.77890686,1837.9,1837.5,6.20337074]
[1746333046243,6.77890686,1837.9,1837.7,0.16461637]
[1746333046244,1.33779932,1837.9,1837.7,0.16461637]
[1746333046462,1.33779932,1837.9,1837.6,5.44186505]
[1746333046463,1.33779932,1837.9,1837.6,5.60692802]
[1746333046663,6.77879175,1837.9,1837.8,0.16416981]
[1746333046863,7.2873694,1837.9,1837.7,0.16461637]
[1746333047036,7.2873694,1837.9,1837.8,0.16416981]
[1746333047435,1.84637697,1837.9,1837.5,1.59746122]
[1746333047655,5.95011818,1837.8,1837.4,4.89692582]
[1746333048072,5.44154053,1837.8,1837.4,4.89692582]
[1746333048476,5.44154053,1837.8,1837.4,10.33937858]
[1746333048986,5.44184536,1837.7,1837.4,4.491]
[1746333049788,5.44146819,1837.8,1837.4,9.93346387]
[1746333049954,5.4415967,1837.7,1837.4,4.491]
[1746333050297,5.44188178,1837.6,1837.4,4.491]
[1746333050470,5.44171448,1837.7,1837.4,4.491]
[1746333050788,0.50911185,1837.6,1837.4,4.491]
[1746333050965,5.44171448,1837.7,1837.4,4.491]